fUSD/lending_fUSD_20250630
["ID","MTS","AMOUNT","RATE_DAILY","PERIOD"]
[368643551,1751261461895,-490.0,0.00016969,2]
[368643552,1751261461904,-228.09398516,0.00016969,2]
[368643553,1751261461914,-709.15,0.00016969,2]
[368643554,1751261461924,-886.13,0.00016969,2]
[368643555,1751261461934,-2326.0,0.00016969,2]
[368643556,1751261461943,-791.36,0.00016969,2]
[368643557,1751261461953,-490.0,0.00016969,2]
[368643558,1751261461962,-1873.76,0.00016969,2]
[368643559,1751261461970,-490.0,0.00016969,2]
[368643560,1751261461978,-2099.14,0.00016969,2]
[368643561,1751261461987,-490.0,0.00016969,2]
[368643562,1751261461996,-1904.42,0.00016969,2]
[368643563,1751261462004,-653.71,0.00016969,2]
[368643564,1751261462013,-490.0,0.00016969,2]
[368643565,1751261462022,-535.86,0.00016969,2]
[368643566,1751261462032,-1699.08,0.00016969,2]
[368643567,1751261462042,-490.0,0.00016969,2]
[368643568,1751261462052,-1953.03,0.00016969,2]
[368643569,1751261462061,-1827.38,0.00016969,2]
[368643570,1751261462071,-2195.25,0.00016969,2]
[368643571,1751261462081,-490.0,0.00016969,2]
[368643572,1751261462090,-490.0,0.00016969,2]
[368643573,1751261462100,-1338.37,0.00016969,2]
[368643574,1751261462110,-2434.45,0.00016969,2]
[368643575,1751261462120,-490.0,0.00016969,2]
[368643576,1751261462129,-1772.56,0.00016969,2]
[368643577,1751261462139,-7947.74,0.00016969,2]
[368643578,1751261462149,-490.0,0.00016969,2]
[368643579,1751261462158,-698.2,0.00016969,2]
[368643580,1751261462168,-1970.63,0.00016969,2]
[368643581,1751261462177,-490.0,0.00016969,2]
[368643582,1751261462187,-832.74,0.00016969,2]
[368643583,1751261462196,-665.13,0.00016969,2]
[368643584,1751261462206,-611.32,0.00016969,2]
[368643585,1751261462215,-490.0,0.00016969,2]
[368643586,1751261462225,-1055.85,0.00016969,2]
[368643587,1751261462235,-1516.58,0.00016969,2]
[368643588,1751261462244,-644.65,0.00016969,2]
[368643589,1751261462254,-490.0,0.00016969,2]
[368643590,1751261462264,-4527.05,0.00016969,2]
[368643591,1751261462273,-490.0,0.00016969,2]
[368643592,1751261462283,-10184.1,0.00016969,2]
[368643593,1751261462293,-157.18057535,0.00016969,2]
[368643594,1751261462303,-1897.88,0.00016969,2]
[368643595,1751261462312,-510.74,0.00016969,2]
[368643596,1751261462322,-716.76,0.00016969,2]
[368643597,1751261462331,-1393.36,0.00016969,2]
[368643598,1751261462341,-490.0,0.00016969,2]
[368643599,1751261462350,-490.0,0.00016969,2]
[368643600,1751261462360,-6635.22,0.00016969,2]
[368643601,1751261462369,-603.58,0.00016969,2]
[368643602,1751261462379,-490.0,0.00016969,2]
[368643603,1751261462388,-1358.63,0.00016969,2]
[368643604,1751261462398,-998.24,0.00016969,2]
[368643605,1751261462407,-490.0,0.00016969,2]
[368643606,1751261462417,-490.0,0.00016969,2]
[368643607,1751261462426,-208.00491116,0.0001697,2]
[368643608,1751261462435,-490.0,0.0001697,2]
[368643609,1751261462445,-756.04,0.0001697,2]
[368643610,1751261462455,-490.0,0.0001697,2]
[368643611,1751261462465,-490.0,0.0001697,2]
[368643612,1751261462476,-490.0,0.0001697,2]
[368643613,1751261462485,-878.51,0.0001697,2]
[368643614,1751261462495,-276.34651089,0.0001697,2]
[368643615,1751261462504,-501.54,0.0001697,2]
[368643616,1751261462514,-1279.7,0.0001697,2]
[368643617,1751261462525,-501.45963708,0.0001697,2]
[368643618,1751261462534,-490.0,0.0001697,2]
[368643619,1751261462545,-2120.76,0.0001697,2]
[368643620,1751261462555,-700.08,0.0001697,2]
[368643621,1751261462565,-490.0,0.0001697,2]
[368643622,1751261462575,-490.0,0.0001697,2]
[368643623,1751261462584,-2280.01,0.0001697,2]
[368643624,1751261462594,-490.0,0.0001697,2]
[368643625,1751261462603,-594.39,0.0001697,2]
[368643626,1751261462612,-632.23,0.0001697,2]
[368643627,1751261462622,-490.0,0.0001697,2]
[368643628,1751261462631,-490.0,0.0001697,2]
[368643629,1751261462641,-775.89,0.0001697,2]
[368643630,1751261462650,-490.0,0.0001697,2]
[368643631,1751261462659,-744.65,0.0001697,2]
[368643632,1751261462669,-541.4628917,0.0001697,2]
[368643633,1751261462678,-490.0,0.0001697,2]
[368643634,1751261462687,-1306.84,0.0001697,2]
[368643635,1751261462697,-490.0,0.0001697,2]
[368643636,1751261462706,-1952.08,0.0001697,2]
[368643637,1751261462715,-490.0,0.0001697,2]
[368643638,1751261462724,-1698.45,0.0001697,2]
[368643639,1751261462735,-490.0,0.0001697,2]
[368643640,1751261462745,-492.79966489,0.0001697,2]
[368643641,1751261462755,-2764.33,0.0001697,2]
[368643642,1751261462765,-864.26,0.0001697,2]
[368643643,1751261462774,-1296.71,0.0001697,2]
[368643644,1751261462784,-676.01,0.0001697,2]
[368643645,1751261462794,-490.0,0.0001697,2]
[368643646,1751261462804,-1223.22,0.0001697,2]
[368643647,1751261462813,-1211.69,0.0001697,2]
[368643648,1751261462823,-492.41330378,0.0001697,2]
[368643649,1751261462833,-569.72,0.0001697,2]
[368643650,1751261462843,-490.0,0.0001697,2]
[368643651,1751261462852,-1631.54,0.0001697,2]
[368643652,1751261462861,-1063.72,0.0001697,2]
[368643653,1751261462871,-490.0,0.0001697,2]
[368643654,1751261462880,-4413.855241,0.0001697,2]
[368643655,1751261462889,-1206.61,0.0001697,2]
[368643656,1751261462899,-490.0,0.0001697,2]
[368643657,1751261462908,-1482.55,0.0001697,2]
[368643658,1751261462918,-1868.98,0.0001697,2]
[368643659,1751261462928,-764.57,0.0001697,2]
[368643660,1751261462938,-490.0,0.0001697,2]
[368643661,1751261462947,-4793.157444,0.0001697,2]
[368643662,1751261462957,-1150.86,0.0001697,2]
[368643663,1751261462967,-490.0,0.0001697,2]
[368643664,1751261462976,-490.0,0.0001697,2]
[368643665,1751261462987,-490.0,0.0001697,2]
[368643666,1751261462996,-2339.16,0.0001697,2]
[368643667,1751261463007,-490.0,0.0001697,2]
[368643668,1751261463016,-3345.090676,0.0001697,2]
[368643669,1751261463025,-755.67,0.0001697,2]
[368643670,1751261463035,-444.53635801,0.0001697,2]
[368643671,1751261463044,-1404.21,0.0001697,2]
[368643672,1751261463054,-154.882695,0.0001697,2]
[368643673,1751261463065,-550.431098,0.0001697,2]
[368643674,1751261463075,-1435.43,0.0001697,2]
[368643675,1751261463085,-490.0,0.0001697,2]
[368643676,1751261463094,-490.0,0.0001697,2]
[368643677,1751261463104,-2442.21,0.0001697,2]
[368643678,1751261463114,-490.0,0.0001697,2]
[368643679,1751261463124,-609.03,0.0001697,2]
[368643680,1751261463133,-879.3,0.0001697,2]
[368643681,1751261463143,-1587.15,0.0001697,2]
[368643682,1751261463153,-1075.95,0.0001697,2]
[368643683,1751261463163,-490.0,0.0001697,2]
[368643684,1751261463174,-1006.02,0.0001697,2]
[368643685,1751261463184,-490.0,0.0001697,2]
[368643686,1751261463194,-1387.66,0.0001697,2]
[368643687,1751261463204,-490.0,0.0001697,2]
[368643688,1751261463214,-3107.31,0.0001697,2]
[368643689,1751261463224,-490.0,0.0001697,2]
[368643690,1751261463234,-490.0,0.0001697,2]
[368643691,1751261463244,-490.0,0.0001697,2]
[368643692,1751261463253,-1562.15,0.0001697,2]
[368643693,1751261463264,-927.46,0.0001697,2]
[368643694,1751261463273,-490.0,0.0001697,2]
[368643695,1751261463283,-490.0,0.0001697,2]
[368643696,1751261463293,-231.20866581,0.0001697,2]
[368643697,1751261463303,-490.0,0.0001697,2]
[368643698,1751261463313,-1425.82,0.0001697,2]
[368643699,1751261463322,-490.0,0.0001697,2]
[368643700,1751261463332,-490.0,0.0001697,2]
[368643701,1751261463342,-490.0,0.0001697,2]
[368643702,1751261463351,-490.0,0.0001697,2]
[368643703,1751261463361,-490.0,0.0001697,2]
[368643704,1751261463371,-576.48,0.0001697,2]
[368643705,1751261463380,-1076.57,0.0001697,2]
[368643706,1751261463390,-491.67916601,0.0001697,2]
[368643707,1751261463400,-490.0,0.0001697,2]
[368643708,1751261463409,-259.55537236,0.0001697,2]
[368643709,1751261463419,-309.91,0.0001697,2]
[368643710,1751261463428,-183.9789871,0.0001697,2]
[368643711,1751261463437,-490.0,0.0001697,2]
[368643712,1751261463447,-841.73,0.0001697,2]
[368643713,1751261463456,-490.0,0.0001697,2]
[368643714,1751261463467,-490.0,0.0001697,2]
[368643715,1751261463480,-490.0,0.0001697,2]
[368643716,1751261463490,-574.15,0.0001697,2]
[368643717,1751261463498,-2138.94,0.0001697,2]
[368643718,1751261463506,-490.0,0.0001697,2]
[368643719,1751261463515,-614.04,0.0001697,2]
[368643720,1751261463523,-490.0,0.0001697,2]
[368643721,1751261463531,-490.0,0.0001697,2]
[368643722,1751261463540,-490.0,0.0001697,2]
[368643723,1751261463549,-490.0,0.0001697,2]
[368643724,1751261463558,-490.0,0.0001697,2]
[368643725,1751261463569,-490.0,0.0001697,2]
[368643726,1751261463578,-755.78,0.0001697,2]
[368643727,1751261463587,-490.0,0.0001697,2]
[368643728,1751261463597,-1266.96,0.0001697,2]
[368643729,1751261463607,-490.0,0.0001697,2]
[368643730,1751261463616,-490.0,0.0001697,2]
[368643731,1751261463625,-3992.9,0.0001697,2]
[368643732,1751261463635,-1484.03,0.0001697,2]
[368643733,1751261463644,-490.0,0.0001697,2]
[368643734,1751261463654,-490.0,0.0001697,2]
[368643735,1751261463669,-2175.5,0.0001697,2]
[368643736,1751261463679,-490.0,0.0001697,2]
[368643737,1751261463689,-490.0,0.0001697,2]
[368643738,1751261463699,-490.0,0.0001697,2]
[368643739,1751261463709,-2249.56,0.0001697,2]
[368643740,1751261463719,-2888.07,0.0001697,2]
[368643741,1751261463729,-614.25,0.0001697,2]
[368643742,1751261463739,-716.23,0.0001697,2]
[368643743,1751261463748,-490.0,0.0001697,2]
[368643744,1751261463758,-1802.75,0.0001697,2]
[368643745,1751261463769,-490.0,0.0001697,2]
[368643746,1751261463779,-1790.17,0.0001697,2]
[368643747,1751261463789,-490.0,0.0001697,2]
[368643748,1751261463800,-610.27,0.0001697,2]
[368643749,1751261463810,-490.0,0.0001697,2]
[368643750,1751261463821,-490.0,0.0001697,2]
[368643751,1751261463830,-1409.11,0.0001697,2]
[368643752,1751261463840,-5193.97,0.0001697,2]
[368643753,1751261463851,-490.0,0.0001697,2]
[368643754,1751261463861,-1678.85,0.0001697,2]
[368643755,1751261463872,-4914.11,0.0001697,2]
[368643756,1751261464140,-490.0,0.0001697,2]
[368643757,1751261464168,-490.0,0.0001697,2]
[368643758,1751261464178,-490.0,0.0001697,2]
[368643759,1751261464188,-490.0,0.0001697,2]
[368643760,1751261464198,-2299.26,0.0001697,2]
[368643761,1751261464208,-1154.07,0.0001697,2]
[368643762,1751261464217,-490.0,0.0001697,2]
[368643763,1751261464227,-2276.36,0.0001697,2]
[368643764,1751261464236,-2553.43,0.0001697,2]
[368643765,1751261464246,-629.98618536,0.0001697,2]
[368643766,1751261464256,-2190.47,0.0001697,2]
[368643767,1751261464265,-2283.07,0.0001697,2]
[368643768,1751261464275,-5643.11,0.0001697,2]
[368643769,1751261464284,-2099.68,0.0001697,2]
[368643770,1751261464294,-5220.63,0.0001697,2]
[368643771,1751261464303,-2460.3,0.0001697,2]
[368643772,1751261464313,-490.0,0.0001697,2]
[368643773,1751261464323,-490.0,0.0001697,2]
[368643774,1751261464332,-490.0,0.0001697,2]
[368643775,1751261464342,-490.0,0.0001697,2]
[368643776,1751261464353,-962.48,0.0001697,2]
[368643777,1751261464363,-490.0,0.0001697,2]
[368643778,1751261464373,-2196.0,0.0001697,2]
[368643779,1751261464383,-490.0,0.0001697,2]
[368643780,1751261464392,-2816.83,0.0001697,2]
[368643781,1751261464401,-490.0,0.0001697,2]
[368643782,1751261464411,-2607.71,0.0001697,2]
[368643783,1751261464421,-490.0,0.0001697,2]
[368643784,1751261464431,-11851.55,0.0001697,2]
[368643785,1751261464441,-1897.79,0.0001697,2]
[368643786,1751261464452,-5252.49,0.0001697,2]
[368643787,1751261464462,-3832.64,0.0001697,2]
[368643788,1751261464472,-490.0,0.0001697,2]
[368643789,1751261464485,-2709.27,0.0001697,2]
[368643790,1751261464495,-887.17,0.0001697,2]
[368643791,1751261464505,-490.0,0.0001697,2]
[368643792,1751261464515,-2411.15,0.0001697,2]
[368643793,1751261464525,-490.0,0.0001697,2]
[368643794,1751261464534,-215.63293022,0.0001697,2]
[368643795,1751261464544,-490.0,0.0001697,2]
[368643796,1751261464554,-527.36,0.0001697,2]
[368643797,1751261464563,-6272.66,0.0001697,2]
[368643798,1751261464573,-2291.48,0.0001697,2]
[368643799,1751261464582,-335.27631483,0.0001697,2]
[368643800,1751261464592,-490.0,0.0001697,2]
[368643801,1751261464601,-2874.74,0.0001697,2]
[368643802,1751261464610,-1314.66,0.0001697,2]
[368643803,1751261464620,-490.0,0.0001697,2]
[368643804,1751261464629,-490.0,0.0001697,2]
[368643805,1751261464639,-2301.05,0.0001697,2]
[368643806,1751261464650,-490.0,0.0001697,2]
[368643807,1751261464659,-2660.92,0.0001697,2]
[368643808,1751261464669,-1164.85,0.0001697,2]
[368643809,1751261464680,-2723.81,0.0001697,2]
[368643810,1751261464689,-1428.29,0.0001697,2]
[368643811,1751261464699,-8370.0,0.0001697,2]
[368643812,1751261464710,-206.98277851,0.0001697,2]
[368643813,1751261464719,-1610.64,0.0001697,2]
[368643814,1751261464730,-1423.94,0.0001697,2]
[368643815,1751261464740,-490.0,0.0001697,2]
[368643816,1751261464749,-490.0,0.0001697,2]
[368643817,1751261464759,-2475.39,0.0001697,2]
[368643818,1751261464768,-490.0,0.0001697,2]
[368643819,1751261464778,-1033.31,0.0001697,2]
[368643820,1751261464787,-2033.74,0.0001697,2]
[368643821,1751261464796,-491.2510078,0.0001697,2]
[368643822,1751261464805,-15806.26,0.0001697,2]
[368643823,1751261464815,-484.65829451,0.0001697,2]
[368643824,1751261464824,-1039.33,0.0001697,2]
[368643825,1751261464834,-1656.61,0.0001697,2]
[368643826,1751261464843,-2394.97,0.0001697,2]
[368643827,1751261464853,-490.0,0.0001697,2]
[368643828,1751261464862,-490.0,0.0001697,2]
[368643829,1751261464871,-490.0,0.0001697,2]
[368643830,1751261464881,-2584.02,0.0001697,2]
[368643831,1751261464890,-2213.02,0.0001697,2]
[368643832,1751261464900,-9737.54,0.0001697,2]
[368643833,1751261464910,-1532.6,0.0001697,2]
[368643834,1751261464919,-490.0,0.0001697,2]
[368643835,1751261464929,-490.0,0.0001697,2]
[368643836,1751261464939,-1659.52,0.0001697,2]
[368643837,1751261464950,-490.0,0.0001697,2]
[368643838,1751261464960,-490.0,0.0001697,2]
[368643839,1751261464970,-6105.19,0.0001697,2]
[368643840,1751261464980,-490.0,0.0001697,2]
[368643841,1751261464990,-4237.49,0.0001697,2]
[368643842,1751261465000,-1520.1,0.0001697,2]
[368643843,1751261465009,-490.0,0.0001697,2]
[368643844,1751261465019,-684.83,0.0001697,2]
[368643845,1751261465029,-490.0,0.0001697,2]
[368643846,1751261465040,-2806.24,0.0001697,2]
[368643847,1751261465051,-490.0,0.0001697,2]
[368643848,1751261465060,-1697.37,0.0001697,2]
[368643849,1751261465070,-5207.33,0.0001697,2]
[368643850,1751261465080,-6714.39,0.0001697,2]
[368643851,1751261465089,-1252.39,0.0001697,2]
[368643852,1751261465099,-490.0,0.0001697,2]
[368643853,1751261465108,-4867.01,0.0001697,2]
[368643854,1751261465118,-937.36,0.0001697,2]
[368643855,1751261465128,-465.18402132,0.0001697,2]
[368643856,1751261465137,-490.0,0.0001697,2]
[368643857,1751261465147,-1525.01,0.0001697,2]
[368643858,1751261465157,-1138.1,0.00016971,2]
[368643859,1751261465166,-1213.79,0.00016971,2]
[368643860,1751261465176,-490.0,0.00016971,2]
[368643861,1751261465186,-490.0,0.00016971,2]
[368643862,1751261465196,-490.0,0.00016971,2]
[368643863,1751261465206,-469.05630975,0.00016971,2]
[368643864,1751261465216,-493.55688432,0.00016971,2]
[368643865,1751261465226,-490.0,0.00016971,2]
[368643866,1751261465235,-1138.06,0.00016971,2]
[368643867,1751261465244,-492.16,0.00016971,2]
[368643868,1751261465254,-490.0,0.00016971,2]
[368643869,1751261465263,-490.0,0.00016971,2]
[368643870,1751261465272,-490.0,0.00016971,2]
[368643871,1751261465282,-811.81,0.00016971,2]
[368643872,1751261465292,-490.0,0.00016971,2]
[368643873,1751261465302,-490.0,0.00016971,2]
[368643874,1751261465311,-490.0,0.00016971,2]
[368643875,1751261465321,-831.1,0.00016971,2]
[368643876,1751261465332,-490.0,0.00016971,2]
[368643877,1751261465341,-1281.99,0.00016971,2]
[368643878,1751261465351,-1531.0,0.00016971,2]
[368643879,1751261465360,-490.0,0.00016971,2]
[368643880,1751261465370,-2856.91,0.00016971,2]
[368643881,1751261465380,-1023.87,0.00016971,2]
[368643882,1751261465390,-2549.45,0.00016971,2]
[368643883,1751261465400,-1263.62,0.00016971,2]
[368643884,1751261465410,-1442.94,0.00016971,2]
[368643885,1751261465420,-490.0,0.00016971,2]
[368643886,1751261465429,-490.0,0.00016971,2]
[368643887,1751261465439,-490.0,0.00016971,2]
[368643888,1751261465449,-490.0,0.00016971,2]
[368643889,1751261465459,-1195.61,0.00016971,2]
[368643890,1751261465469,-490.0,0.00016971,2]
[368643891,1751261465478,-490.0,0.00016971,2]
[368643892,1751261465490,-515.29,0.00016971,2]
[368643893,1751261465500,-2064.41,0.00016971,2]
[368643894,1751261465509,-1521.96,0.00016971,2]
[368643895,1751261465519,-3196.92,0.00016971,2]
[368643896,1751261465531,-2392.0,0.00016971,2]
[368643897,1751261465540,-490.0,0.00016971,2]
[368643898,1751261465551,-4017.96,0.00016971,2]
[368643899,1751261465560,-810.61,0.00016971,2]
[368643900,1751261465570,-3382.79,0.00016971,2]
[368643901,1751261465580,-490.0,0.00016971,2]
[368643902,1751261465589,-490.0,0.00016971,2]
[368643903,1751261465599,-1273.27,0.00016971,2]
[368643904,1751261465608,-490.0,0.00016971,2]
[368643905,1751261465619,-3123.98,0.00016971,2]
[368643906,1751261465628,-2398.3,0.00016971,2]
[368643907,1751261465637,-887.33,0.00016971,2]
[368643908,1751261465647,-2814.04,0.00016971,2]
[368643909,1751261465656,-490.0,0.00016971,2]
[368643910,1751261465666,-2172.72,0.00016971,2]
[368643911,1751261465674,-366.01450192,0.00016971,2]
[368643912,1751261465682,-1331.87,0.00016971,2]
[368643913,1751261465692,-769.45,0.00016971,2]
[368643914,1751261465700,-3783.03,0.00016971,2]
[368643915,1751261465708,-3567.56,0.00016971,2]
[368643916,1751261465716,-1655.01,0.00016971,2]
[368643917,1751261465726,-1859.53,0.00016971,2]
[368643918,1751261465736,-709.38,0.00016971,2]
[368643919,1751261465746,-3165.01,0.00016971,2]
[368643920,1751261465758,-2171.35,0.00016971,2]
[368643921,1751261465767,-30180.44,0.00016971,2]
[368643922,1751261465778,-1781.25,0.00016971,2]
[368643923,1751261465788,-2223.31,0.00016971,2]
[368643924,1751261465798,-2406.82,0.00016971,2]
[368643925,1751261465807,-2664.57,0.00016971,2]
[368643926,1751261465816,-5008.99,0.00016971,2]
[368643927,1751261465826,-490.0,0.00016971,2]
[368643928,1751261465836,-3881.98,0.00016971,2]
[368643929,1751261465845,-2491.68,0.00016971,2]
[368643930,1751261465854,-1785.76,0.00016971,2]
[368643931,1751261465863,-1722.29,0.00016971,2]
[368643932,1751261465873,-2974.65,0.00016971,2]
[368643933,1751261465883,-2115.06,0.00016971,2]
[368643934,1751261465892,-1633.84,0.00016971,2]
[368643935,1751261465902,-2837.05,0.00016971,2]
[368643936,1751261465911,-3369.25,0.00016971,2]
[368643937,1751261465920,-2231.45,0.00016971,2]
[368643938,1751261465930,-1031.31,0.00016971,2]
[368643939,1751261465939,-3857.62,0.00016971,2]
[368643940,1751261465949,-1255.81,0.00016971,2]
[368643941,1751261465959,-1599.59,0.00016971,2]
[368643942,1751261465970,-490.0,0.00016971,2]
[368643943,1751261465979,-660.6,0.00016971,2]
[368643944,1751261465989,-2742.86,0.00016971,2]
[368643945,1751261465999,-3783.08,0.00016971,2]
[368643946,1751261466009,-2242.8,0.00016971,2]
[368643947,1751261466019,-2061.29,0.00016971,2]
[368643948,1751261466028,-694.25,0.00016971,2]
[368643949,1751261466038,-490.0,0.00016971,2]
[368643950,1751261466048,-2387.81,0.00016971,2]
[368643951,1751261466058,-943.97,0.00016971,2]
[368643952,1751261466067,-816.42,0.00016971,2]
[368643953,1751261466077,-3106.31,0.00016971,2]
[368643954,1751261466087,-3014.89,0.00016971,2]
[368643955,1751261466096,-2687.92,0.00016971,2]
[368643956,1751261466106,-2310.43,0.00016971,2]
[368643957,1751261466115,-2103.37,0.00016971,2]
[368643958,1751261466125,-3174.93,0.00016971,2]
[368643959,1751261466137,-3855.77,0.00016971,2]
[368643960,1751261466147,-1048.41,0.00016971,2]
[368643961,1751261466156,-1221.93,0.00016971,2]
[368643962,1751261466166,-1324.13,0.00016971,2]
[368643963,1751261466175,-1941.32,0.00016971,2]
[368643964,1751261466188,-2351.96,0.00016971,2]
[368643965,1751261466198,-490.0,0.00016971,2]
[368643966,1751261466208,-3601.95,0.00016971,2]
[368643967,1751261466218,-490.0,0.00016971,2]
[368643968,1751261466228,-1149.95,0.00016971,2]
[368643969,1751261466238,-858.04383327,0.00016973,2]
[368643970,1751261466247,-3317.59,0.00016992,2]
[368643971,1751261466257,-500.0,0.00016997,2]
[368643972,1751261466268,-1249.16,0.00016997,2]
[368643973,1751261466279,-1410.14,0.00016998,2]
[368643974,1751261466289,-1598.72,0.00016998,2]
[368643975,1751261466299,-837.49,0.00016998,2]
[368643976,1751261466308,-1410.14,0.00016999,2]
[368643977,1751261466318,-1410.14,0.00016999,2]
[368643978,1751261466329,-638.03,0.00016999,2]
[368643979,1751261466339,-638.03,0.00016999,2]
[368643980,1751261466351,-638.03,0.00016999,2]
[368643981,1751261466360,-1598.72,0.00016999,2]
[368643982,1751261466370,-1598.72,0.00016999,2]
[368643983,1751261466380,-3317.59,0.00016999,2]
[368643984,1751261466389,-3317.59,0.00016999,2]
[368643985,1751261466399,-3317.59,0.00016999,2]
[368643986,1751261466410,-549.49,0.00016999,2]
[368643987,1751261466420,-549.49,0.00016999,2]
[368643988,1751261466430,-549.49,0.00016999,2]
[368643989,1751261466440,-525.27578369,0.00016999,2]
[368643990,1751261466449,-1894.93,0.00016999,2]
[368643991,1751261466458,-1894.93,0.00016999,2]
[368643992,1751261466468,-1894.93,0.00016999,2]
[368643993,1751261466477,-1249.16,0.00016999,2]
[368643994,1751261466489,-1249.16,0.00016999,2]
[368643995,1751261466498,-837.49,0.00016999,2]
[368643996,1751261466507,-837.49,0.00016999,2]
[368643997,1751261466516,-684.83,0.00016999,2]
[368643998,1751261466526,-684.83,0.00016999,2]
[368643999,1751261466535,-684.83,0.00016999,2]
[368644000,1751261466545,-300.0,0.00017,2]
[368644001,1751261466554,-581.0,0.00017011,2]
[368644002,1751261466564,-371.69001478,0.00017026,2]
[368644003,1751261466574,-180.13367034,0.00017049,2]
[368644004,1751261466583,-193.36228377,0.00017052,2]
[368644005,1751261466593,-1894.93,0.00017058,2]
[368644006,1751261466602,-1249.16,0.00017058,2]
[368644007,1751261466611,-684.83,0.00017058,2]
[368644008,1751261466621,-591.51,0.00017059,2]
[368644009,1751261466717,-882.55,0.00017059,2]
[368644010,1751261466727,-588.79,0.00017059,2]
[368644011,1751261466736,-490.0,0.00017059,2]
[368644012,1751261466745,-490.0,0.00017059,2]
[368644013,1751261466755,-490.0,0.00017059,2]
[368644014,1751261466764,-497.72,0.00017059,2]
[368644015,1751261466772,-490.0,0.00017059,2]
[368644016,1751261466781,-554.45,0.00017059,2]
[368644017,1751261466791,-490.0,0.00017059,2]
[368644018,1751261466800,-490.0,0.00017059,2]
[368644019,1751261466809,-490.0,0.00017059,2]
[368644020,1751261466818,-938.55,0.00017059,2]
[368644021,1751261466828,-490.0,0.00017059,2]
[368644022,1751261466837,-493.87182896,0.00017059,2]
[368644023,1751261466846,-490.0,0.00017059,2]
[368644024,1751261466855,-490.0,0.00017059,2]
[368644025,1751261466864,-968.6,0.00017059,2]
[368644026,1751261466874,-490.0,0.00017059,2]
[368644027,1751261466883,-490.0,0.00017059,2]
[368644028,1751261466893,-497.96,0.00017059,2]
[368644029,1751261466902,-490.0,0.00017059,2]
[368644030,1751261466912,-490.0,0.00017059,2]
[368644031,1751261466922,-490.0,0.00017059,2]
[368644032,1751261466931,-490.0,0.00017059,2]
[368644033,1751261466942,-490.0,0.00017059,2]
[368644034,1751261466952,-490.0,0.00017059,2]
[368644035,1751261466962,-500.0,0.00017059,2]
[368644036,1751261466972,-490.0,0.00017059,2]
[368644037,1751261466981,-490.0,0.00017059,2]
[368644038,1751261466992,-828.03,0.00017059,2]
[368644039,1751261467002,-490.0,0.00017059,2]
[368644040,1751261467012,-490.0,0.00017059,2]
[368644041,1751261467021,-615.7,0.00017059,2]
[368644042,1751261467030,-490.0,0.00017059,2]
[368644043,1751261467037,-490.0,0.00017059,2]
[368644044,1751261467045,-490.0,0.00017059,2]
[368644045,1751261467053,-1232.84,0.00017059,2]
[368644046,1751261467062,-490.0,0.00017059,2]
[368644047,1751261467071,-829.77,0.00017059,2]
[368644048,1751261467080,-490.0,0.00017059,2]
[368644049,1751261467089,-1109.43,0.00017059,2]
[368644050,1751261467099,-490.0,0.00017059,2]